bitfinex-derivatives/quotes_ETHF0:USTF0_20250314
["timestamp","ask_amount","ask_price","bid_price","bid_amount"]
[1741986176282,2.44272,1926.5,1926.4,2.45198]
[1741986180678,2.44272,1926.5,1926.4,1.4139]
[1741986180880,1.03808,1926.4,1926.3,0.00779849]
[1741986181187,5.60238,1926.4,1926.3,0.00779849]
[1741986181388,1.03835,1925.9,1925.8,31.9958]
[1741986181777,2.59565,1926.1,1925.5,4.6268]
[1741986181778,1.03851,1925.7,1925.5,4.6268]
[1741986181987,1.03845,1925.7,1925.6,4.885]
[1741986182477,1.03845,1925.7,1925.6,1.45]
[1741986182787,1.03851,1925.6,1925.5,0.00779849]
[1741986182984,1.03851,1925.6,1925.5,1.04635849]
[1741986183186,1.03851,1925.6,1925.5,1.45779849]
[1741986184586,0.6727,1925.8,1925.5,1.45779849]
[1741986184790,1.03844,1925.8,1925.6,4.24631]
[1741986184982,1.03844,1925.8,1925.7,2.42545]
[1741986185176,1.03844,1925.8,1925.7,3.09535]
[1741986185387,1.03838,1925.9,1925.7,3.09535]
[1741986185588,1.03838,1925.9,1925.8,1.387]
[1741986186792,6.46848,1926.0,1925.6,1.7023]
[1741986186989,6.46848,1926.0,1925.5,0.00779849]
[1741986186990,3.2078,1925.8,1925.5,0.00779849]
[1741986187290,1.03851,1925.6,1925.5,0.00779849]
[1741986188404,1.72721,1925.6,1925.5,0.00779849]
[1741986189300,1.72721,1925.6,1925.5,1.34919849]
[1741986192209,1.03851,1925.6,1925.5,2.38775849]
[1741986192506,1.03851,1925.6,1925.5,1.34919849]
[1741986194792,3.2078,1926.0,1925.5,1.34919849]
[1741986194983,1.03845,1925.7,1925.6,0.7256]
[1741986195183,1.03845,1925.7,1925.6,2.0924]
[1741986195988,1.03845,1925.7,1925.6,3.13091]
[1741986196386,1.03845,1925.7,1925.6,2.0924]
[1741986196887,1.03845,1925.7,1925.6,3.13091]
[1741986197487,1.03845,1925.7,1925.6,2.0924]
[1741986197795,1.03851,1925.6,1925.5,0.00779849]
[1741986198898,1.03851,1925.6,1925.5,1.42069849]
[1741986199383,1.03851,1925.6,1925.5,0.00779849]
[1741986200196,4.24631,1925.6,1925.5,0.00779849]
[1741986200395,4.92081,1925.6,1925.5,0.00779849]
[1741986200595,6.3823,1925.6,1924.9,1.03885]
[1741986200788,1.03883,1925.0,1924.9,5.82995]
[1741986201795,1.03883,1925.0,1924.9,3.80775]
[1741986201994,1.04660849,1925.1,1925.0,1.03883]
[1741986202294,0.00779849,1925.1,1925.0,2.45163]
[1741986202502,1.04657849,1925.1,1925.0,2.45163]
[1741986202795,2.44217849,1925.1,1925.0,2.45163]
[1741986203899,2.44217849,1925.1,1925.0,1.4128]
[1741986204804,2.44217849,1925.1,1925.0,2.45163]
[1741986205697,1.40339849,1925.1,1925.0,2.45163]
[1741986206002,0.00779849,1925.1,1925.0,2.45163]
[1741986207796,0.00779849,1925.1,1925.0,5.65943]
[1741986214105,0.00779849,1925.1,1925.0,5.65943]
[1741986215407,1.03868,1925.3,1925.2,1.03872]
[1741986216107,1.03868,1925.3,1925.2,3.08762]
[1741986216707,1.3969,1925.4,1925.2,3.08762]
[1741986216708,1.40469849,1925.4,1925.2,2.0489]
[1741986216901,2.44331849,1925.4,1925.3,2.0137]
[1741986218105,2.44331849,1925.4,1925.3,3.05237]
[1741986220511,2.44331849,1925.4,1925.3,2.0137]
[1741986220710,2.44331849,1925.4,1925.3,3.05237]
[1741986228733,2.44331849,1925.4,1925.3,2.0137]
[1741986228928,2.44331849,1925.4,1925.3,1.345]
[1741986229835,7.20910849,1925.4,1924.8,10.25251849]
[1741986230026,1.03889,1924.9,1924.8,3.21559849]
[1741986230226,1.03889,1924.9,1924.8,0.00779849]
[1741986230735,2.37149,1924.9,1924.8,0.00779849]
[1741986237428,1.03916,1924.4,1924.3,4.94748]
[1741986237634,1.03916,1924.4,1924.3,8.38148]
[1741986237940,1.03921,1924.3,1924.2,5.4649]
[1741986238234,5.68261,1924.3,1924.2,1.333]
[1741986238427,1.03926,1924.2,1924.1,3.434]
[1741986238623,1.03926,1924.2,1924.1,4.77479849]
[1741986238624,3.17836,1924.2,1924.1,4.77479849]
[1741986239027,3.17836,1924.2,1924.1,1.34079849]
[1741986239636,3.17836,1924.2,1924.1,0.00779849]
[1741986248542,2.47486,1924.2,1924.1,0.00779849]
[1741986248732,2.47486,1924.2,1924.1,1.39959849]
[1741986249132,1.03926,1924.2,1924.1,1.39959849]
[1741986249942,2.48116,1924.2,1924.1,1.39959849]
[1741986252535,2.48116,1924.2,1924.1,2.43891849]
[1741986252737,1.03926,1924.2,1924.1,1.39959849]
[1741986252939,1.03926,1924.2,1924.1,2.43891849]
[1741986253243,1.03926,1924.2,1924.1,1.39959849]
[1741986256648,1.03926,1924.2,1924.1,2.43891849]
[1741986257351,1.03926,1924.2,1924.1,1.39959849]
[1741986268957,1.04702849,1924.3,1924.2,3.78136]
[1741986269748,0.00779849,1924.3,1924.2,3.78136]
[1741986270158,1.04700849,1924.3,1924.2,3.78136]
[1741986273560,1.04700849,1924.3,1924.2,6.98916]
[1741986274458,1.04700849,1924.3,1924.2,5.9499]
[1741986276062,1.03926,1924.2,1924.1,0.00779849]
[1741986276263,3.77736,1924.2,1924.1,1.32639849]
[1741986276758,6.98516,1924.2,1924.1,0.00779849]
[1741986276956,1.03943,1923.9,1923.8,1.3186]
[1741986277352,1.03948,1923.8,1923.7,1.3546]
[1741986277556,1.03964,1923.5,1923.4,1.3186]
[1741986283567,1.03964,1923.5,1923.4,2.3583]
[1741986283967,1.3449,1923.6,1923.4,1.3186]
[1741986284158,2.38449,1923.6,1923.5,1.3176]
[1741986292776,1.03959,1923.6,1923.5,1.3176]
[1741986292975,1.03959,1923.6,1923.5,2.35724]
[1741986293371,1.3366,1923.7,1923.5,1.3176]
[1741986293676,2.37618,1923.7,1923.6,2.1086]
[1741986298875,2.59905,1923.6,1923.3,0.6655]
[1741986299074,1.0397,1923.4,1923.3,5.86374]
[1741986299871,1.0397,1923.4,1923.3,2.43074]
[1741986300263,1.0397,1923.4,1923.3,3.74914]
[1741986302579,1.0397,1923.4,1923.3,2.7094]
[1741986303571,1.03975,1923.3,1923.2,3.2078]
[1741986303777,1.03986,1923.1,1923.0,0.6626]
[1741986304570,1.04761849,1923.2,1923.0,0.6626]
[1741986304771,0.00779849,1923.2,1923.1,1.76756]
[1741986305073,0.00779849,1923.2,1923.1,5.19956]
[1741986305375,0.00779849,1923.2,1923.1,6.65546]
[1741986317286,1.04759849,1923.2,1923.1,5.6156]
[1741986317488,1.04759849,1923.2,1923.1,6.65546]
[1741986317680,0.00779849,1923.2,1923.1,6.65546]
[1741986317881,1.38949849,1923.2,1923.1,6.65546]
[1741986318686,0.00779849,1923.2,1923.1,6.65546]
[1741986322395,1.3205,1923.6,1923.5,1.03964]
[1741986323083,2.36009,1923.6,1923.5,2.36404]
[1741986324195,2.36009,1923.6,1923.5,1.3244]
[1741986324694,1.3205,1923.6,1923.5,2.36404]
[1741986324994,2.36009,1923.6,1923.5,2.36404]
[1741986325194,2.36009,1923.6,1923.5,1.3244]
[1741986325393,2.36009,1923.6,1923.5,2.36404]
[1741986326293,2.36009,1923.6,1923.5,1.3244]
[1741986328800,1.03964,1923.5,1923.4,4.82939849]
[1741986328992,2.44304,1923.5,1923.4,4.82939849]
[1741986329299,2.44304,1923.5,1923.4,0.00779849]
[1741986329686,2.44304,1923.5,1923.4,1.04749849]
[1741986329888,2.44304,1923.5,1923.4,1.45659849]
[1741986330396,2.44304,1923.5,1923.4,2.49629849]
[1741986330589,1.4034,1923.5,1923.4,2.49629849]
[1741986330790,3.21559849,1923.7,1923.4,2.49629849]
[1741986330791,3.21559849,1923.7,1923.6,1.03959]
[1741986330984,4.65379849,1923.7,1923.6,1.03959]
[1741986331391,4.65379849,1923.7,1923.6,2.39359]
[1741986332695,0.00779849,1923.7,1923.6,5.82459]
[1741986339202,1.03937,1924.1,1923.9,1.03938]
[1741986339403,1.03937,1924.1,1924.0,1.3584]
[1741986340603,2.37937,1924.1,1924.0,2.39777]
[1741986340902,1.03938,1924.0,1923.8,1.4447]
[1741986341100,2.37938,1924.0,1923.9,1.3292]
[1741986341301,1.03943,1923.9,1923.8,1.03945]
[1741986341502,3.05583,1923.9,1923.8,2.36865]
[1741986342094,2.0164,1923.9,1923.8,2.36865]
[1741986344003,1.34,1923.9,1923.8,2.36865]
[1741986344202,2.37943,1923.9,1923.8,2.36865]
[1741986344600,2.37943,1923.9,1923.8,1.3292]
[1741986345009,1.34,1923.9,1923.6,1.4178]
[1741986345304,1.03953,1923.7,1923.6,1.3747]
[1741986345706,2.46923,1923.7,1923.6,1.3747]
[1741986346310,1.03959,1923.6,1923.5,1.03964]
[1741986346501,2.37629,1923.6,1923.5,2.44174]
[1741986346903,2.37629,1923.6,1923.4,0.00779849]
[1741986346904,1.03964,1923.5,1923.4,0.00779849]
[1741986347104,3.06054,1923.5,1923.4,0.00779849]
[1741986347304,3.06054,1923.5,1923.4,1.40989849]
[1741986348313,3.06054,1923.5,1923.4,2.44959849]
[1741986350414,3.06054,1923.5,1923.4,1.40989849]
[1741986350712,2.37634,1923.5,1923.4,2.44959849]
[1741986351008,2.37634,1923.5,1923.4,1.40989849]
[1741986351209,2.37634,1923.5,1923.4,2.44959849]
[1741986351398,2.37634,1923.5,1923.4,1.40989849]
[1741986351811,2.37634,1923.5,1923.4,2.44959849]
[1741986353813,2.37634,1923.5,1923.4,1.40989849]
[1741986354410,2.37634,1923.5,1923.4,2.44959849]
[1741986354713,1.3367,1923.5,1923.4,2.44959849]
[1741986355807,2.37634,1923.5,1923.4,2.44959849]
[1741986356007,1.3367,1923.5,1923.4,2.44959849]
[1741986356707,3.2078,1923.8,1923.7,1.03953]
[1741986356905,5.64408,1923.8,1923.7,1.03953]
[1741986357512,5.64408,1923.8,1923.7,3.06563]
[1741986358109,4.6046,1923.8,1923.7,3.06563]
[1741986358805,1.0394,1924.0,1923.7,2.0261]
[1741986359005,2.4626,1924.0,1923.8,1.3113]
[1741986359216,2.4626,1924.0,1923.8,2.35073]
[1741986359416,1.4232,1923.9,1923.8,2.35073]
[1741986362207,1.94522873,1924.2,1923.8,7.11777]
[1741986362517,1.347,1924.0,1923.9,3.18413]
[1741986364513,0.00779849,1924.2,1924.1,1.03932]
[1741986364716,1.03932,1924.1,1924.0,2.46212]
[1741986364918,1.03932,1924.1,1924.0,1.03932]
[1741986365318,2.40500849,1924.2,1924.0,1.03932]
[1741986365819,1.3579,1924.1,1924.0,1.03932]
[1741986369116,0.00779849,1924.2,1924.1,1.03932]
[1741986369311,1.46059849,1924.2,1924.1,1.03932]
[1741986371925,1.46059849,1924.2,1924.0,1.03932]
[1741986372422,1.03932,1924.1,1924.0,1.03932]
[1741986373632,2.49990849,1924.2,1924.1,1.03932]
[1741986373828,1.03932,1924.1,1924.0,1.03933]
[1741986374525,0.6915,1924.1,1923.9,4.1313]
[1741986374726,1.73085,1924.1,1924.0,1.03937]
[1741986377125,1.03937,1924.0,1923.9,4.1313]
[1741986377321,1.03959,1923.7,1923.6,1.03957]
[1741986377626,1.03962,1923.6,1923.5,1.3538]
[1741986378328,1.03962,1923.6,1923.5,0.6665]
[1741986378929,1.03962,1923.6,1923.5,1.70614]
[1741986379225,1.03958,1923.7,1923.6,1.03958]
[1741986379727,0.6695,1923.8,1923.5,1.7061]
[1741986379929,1.03953,1923.7,1923.6,1.3181]
[1741986380829,1.03953,1923.7,1923.6,2.35769]
[1741986381024,1.03953,1923.7,1923.6,1.3181]
[1741986382230,0.6695,1923.8,1923.6,1.3181]
[1741986382530,1.0395,1923.8,1923.7,1.03953]
[1741986382732,1.0395,1923.8,1923.7,1.73333]
[1741986383531,1.72657,1923.9,1923.8,1.03948]
[1741986383729,1.72657,1923.9,1923.8,2.48998]
[1741986384032,1.72657,1923.9,1923.8,1.4505]
[1741986385135,1.03953,1923.7,1923.6,1.03956]
[1741986385332,1.03953,1923.7,1923.6,2.49006]
[1741986385624,1.03959,1923.6,1923.5,1.3829]
[1741986385831,1.03959,1923.6,1923.5,2.4225]
[1741986387131,1.03959,1923.6,1923.5,3.8072]
[1741986387332,1.03958,1923.7,1923.6,1.03955]
[1741986387534,1.03958,1923.7,1923.6,2.42425]
[1741986389834,2.37768,1923.7,1923.6,2.42425]
[1741986390035,2.37768,1923.7,1923.6,1.3847]
[1741986394732,1.03964,1923.5,1923.4,0.00779849]
[1741986395440,3.89374,1923.5,1923.4,0.00779849]
[1741986395733,1.0398,1923.2,1923.1,0.6928]
[1741986395947,1.0398,1923.2,1923.1,2.08]
[1741986396437,1.0398,1923.2,1923.1,1.3872]
[1741986396638,1.7135,1923.2,1923.1,1.3872]
[1741986396939,1.03986,1923.1,1923.0,0.68479849]
[1741986397133,2.49436,1923.1,1923.0,1.72470849]
[1741986398341,2.49436,1923.1,1923.0,2.07009849]
[1741986400040,2.49436,1923.1,1923.0,3.11000849]
[1741986400352,2.49436,1923.1,1923.0,2.07009849]
[1741986400537,2.49436,1923.1,1923.0,1.39309849]
[1741986400835,3.20016,1923.1,1923.0,1.39309849]
[1741986402636,3.20016,1923.1,1923.0,0.00779849]
[1741986402847,6.40796,1923.1,1923.0,0.00779849]
[1741986404137,3.20016,1923.1,1923.0,0.00779849]
[1741986406746,2.49436,1923.1,1923.0,0.00779849]
[1741986406948,2.49436,1923.1,1923.0,0.70399849]
[1741986407451,2.49436,1923.1,1923.0,0.00779849]
[1741986409749,1.04002,1922.8,1922.7,0.7175]
[1741986409945,1.04007,1922.7,1922.6,3.2078]
[1741986410147,2.36907,1922.7,1922.6,1.3794]
[1741986410356,2.36907,1922.7,1922.6,3.11793]
[1741986411155,2.36907,1922.7,1922.6,2.0778]
[1741986412251,2.36907,1922.7,1922.6,3.11793]
[1741986412647,1.329,1922.7,1922.6,2.0778]
[1741986412852,2.36907,1922.7,1922.6,2.0778]
[1741986415449,2.36907,1922.7,1922.6,1.3794]
[1741986421955,2.60033,1922.6,1922.1,3.2078]
[1741986422148,3.2078,1922.5,1922.1,3.426]
[1741986422349,1.04029,1922.3,1922.2,1.04031]
[1741986423060,1.04029,1922.3,1922.1,3.426]
[1741986423265,1.04029,1922.3,1922.2,1.3505]
[1741986423559,1.04029,1922.3,1922.2,2.39082]
[1741986423764,1.3485,1922.5,1922.2,1.3505]
[1741986423953,1.04024,1922.4,1922.3,2.016]
[1741986424554,1.3485,1922.5,1922.3,2.016]
[1741986424754,1.04018,1922.5,1922.4,2.052]
[1741986426955,1.04018,1922.5,1922.4,3.09224]
[1741986428062,1.437,1922.6,1922.4,2.052]
[1741986428258,0.00779849,1922.8,1922.5,1.3184]
[1741986428452,2.43591,1922.7,1922.6,0.7025]
[1741986428653,2.43591,1922.7,1922.6,1.3184]
[1741986428955,1.04018,1922.5,1922.3,1.04027]
[1741986429160,1.04018,1922.5,1922.4,1.3184]
[1741986429562,2.43598,1922.5,1922.4,1.3184]
[1741986430661,2.43598,1922.5,1922.4,2.35864]
[1741986430863,1.3958,1922.5,1922.4,1.3184]
[1741986431166,2.43598,1922.5,1922.4,1.3184]
[1741986431762,2.43598,1922.5,1922.4,2.35864]
[1741986432258,2.43598,1922.5,1922.4,1.3184]
[1741986435762,2.43598,1922.5,1922.4,2.35864]
[1741986436166,2.43598,1922.5,1922.4,1.3184]
[1741986436368,2.43598,1922.5,1922.4,2.35864]
[1741986437869,2.43598,1922.5,1922.4,1.3184]
[1741986441273,2.43598,1922.5,1922.4,2.35864]
[1741986443469,2.43598,1922.5,1922.4,1.3184]
[1741986445975,2.43598,1922.5,1922.4,2.35864]
[1741986446171,2.43598,1922.5,1922.4,1.3184]
[1741986450481,1.91520731,1922.7,1922.4,1.3184]
[1741986450669,1.91520731,1922.7,1922.6,1.04013]
[1741986450670,1e-08,1922.7,1922.6,1.04013]
[1741986450876,3.91054,1923.2,1922.7,1.04004]
[1741986451180,1.04001,1922.9,1922.8,2.1029]
[1741986451383,1.311,1923.1,1922.8,2.7812]
[1741986451584,4.83786729,1923.2,1922.9,1.4234]
[1741986451585,1.03991,1923.0,1922.9,1.4234]
[1741986454879,0.00779849,1923.1,1922.9,1.4234]
[1741986455081,0.00779849,1923.1,1923.0,4.24771]
[1741986455287,0.00779849,1923.1,1923.0,7.67271]
[1741986455483,1.04765849,1923.1,1923.0,7.67271]
[1741986455782,0.00779849,1923.1,1923.0,7.67271]
[1741986460678,1.03974,1923.4,1923.3,1.03975]
[1741986460981,1.03974,1923.4,1923.0,9.23258]
[1741986460982,2.45663,1923.4,1923.1,2.1143]
[1741986461171,2.45663,1923.4,1923.2,1.4363]
[1741986461373,1.03975,1923.3,1923.2,2.47608]
[1741986461577,1.4169,1923.3,1923.2,2.47608]
[1741986462180,2.45665,1923.3,1923.2,5.68388]
[1741986462379,0.00779849,1923.4,1923.3,1.03975]
[1741986462576,3.2078,1923.7,1923.3,1.03975]
[1741986462577,1.4239,1923.7,1923.6,1.03959]
[1741986462777,10.5635,1924.2,1923.9,1.03939]
[1741986462977,10.5635,1924.2,1923.7,0.679]
[1741986462978,1.03948,1923.8,1923.7,0.679]
[1741986463173,1.03948,1923.8,1923.7,2.0949]
[1741986463881,1.03948,1923.8,1923.7,2.8062]
[1741986465284,2.44828,1923.8,1923.7,2.8062]
[1741986470692,2.44828,1923.8,1923.7,2.0949]
[1741986470892,2.44828,1923.8,1923.7,1.4159]
[1741986472095,1.03953,1923.7,1923.6,0.00779849]
[1741986472294,2.38293,1923.7,1923.6,0.00779849]
[1741986472486,5.59073,1923.7,1923.6,0.00779849]
[1741986473290,2.38293,1923.7,1923.6,0.00779849]
[1741986474295,5.59073,1923.7,1923.6,0.00779849]
[1741986474682,2.38293,1923.7,1923.6,0.00779849]
[1741986474985,5.59073,1923.7,1923.6,0.00779849]
[1741986477392,8.09073,1923.7,1923.6,0.00779849]
[1741986477690,1.03975,1923.3,1923.2,1.4145]
[1741986478090,1.03986,1923.1,1923.0,3.422]
[1741986478393,1.03991,1923.0,1922.9,5.68477]
[1741986479594,1.03991,1923.0,1922.9,7.09927]
[1741986480392,1.03997,1922.9,1922.8,0.00779849]
[1741986480596,2.43017,1922.9,1922.8,1.44069849]
[1741986484096,1.3902,1922.9,1922.8,1.44069849]
[1741986484296,1.03993,1923.0,1922.8,4.86269849]
[1741986484493,1.03993,1923.0,1922.9,2.8281]
[1741986484998,1.03993,1923.0,1922.9,3.86807]
[1741986488797,2.38988,1923.1,1923.0,1.03991]
[1741986489004,1.03984,1923.2,1923.0,2.49401]
[1741986489206,1.03986,1923.1,1923.0,2.49401]
[1741986489392,1.3292,1923.2,1923.0,2.49401]
[1741986489597,2.36903,1923.2,1923.1,2.48086]
[1741986490094,2.36903,1923.2,1923.1,1.441]
[1741986490299,3.2078,1923.5,1923.1,1.441]
[1741986490499,3.2078,1923.5,1923.4,1.0397]
[1741986490696,2.0321,1923.7,1923.4,1.0397]
[1741986490890,1.03959,1923.6,1923.5,0.6768]
[1741986491095,2.36879,1923.6,1923.5,2.1178]
[1741986499610,1.03975,1923.3,1923.2,0.6796]
[1741986499809,1.03986,1923.1,1923.0,0.7013]
[1741986500000,1.03986,1923.1,1923.0,3.16731]
[1741986501106,1.3103,1923.2,1923.0,3.16731]
[1741986501107,1.03978,1923.3,1923.2,1.03979]
[1741986501313,1.03978,1923.3,1923.1,2.43732]
[1741986501513,2.43338,1923.3,1923.2,1.3975]
[1741986503814,2.43338,1923.3,1923.2,2.07]
[1741986512429,2.43338,1923.3,1923.2,1.3975]
[1741986513028,1.03986,1923.1,1923.0,5.62318]
[1741986514425,9.1818,1923.5,1923.0,6.0274]
[1741986514729,2.43045,1923.5,1923.1,4.04375]
[1741986515027,7.3810431,1923.8,1923.4,1.0397]
[1741986515228,1.3908,1923.6,1923.5,2.8081]
[1741986515421,2.43039,1923.6,1923.5,2.8081]
[1741986515637,2.43039,1923.6,1923.5,3.84774]
[1741986515933,1.3908,1923.6,1923.5,3.84774]
[1741986516222,5.4590231,1923.8,1923.5,3.84774]
[1741986516428,2.43037,1923.7,1923.6,1.4441]
[1741986516625,1.3908,1923.7,1923.6,2.48369]
[1741986517929,2.43033,1923.7,1923.6,2.48369]
[1741986518518,1.3908,1923.7,1923.6,2.48369]
[1741986519732,3.2078,1923.8,1923.7,1.03953]
[1741986519927,1.04725849,1923.9,1923.7,2.37973]
[1741986520126,2.46785849,1923.9,1923.8,1.9976]
[1741986521229,0.00779849,1923.9,1923.8,3.03708]
[1741986522029,0.00779849,1923.9,1923.8,1.9976]
[1741986522229,1.42839849,1923.9,1923.8,3.03708]
[1741986522630,0.00779849,1923.9,1923.8,3.03708]
[1741986524640,1.42949849,1923.9,1923.8,3.03708]
[1741986527141,2.46892849,1923.9,1923.8,3.03708]
[1741986527440,2.46892849,1923.9,1923.8,1.9976]
[1741986527839,2.46892849,1923.9,1923.8,3.03708]
[1741986528344,2.46892849,1923.9,1923.8,1.9976]
[1741986529141,2.46892849,1923.9,1923.8,3.03708]
[1741986529439,2.46892849,1923.9,1923.8,1.9976]
[1741986530638,2.46892849,1923.9,1923.8,3.03708]
[1741986533751,2.46892849,1923.9,1923.8,3.70418]
[1741986535449,2.46892849,1923.9,1923.8,2.6647]
[1741986535751,2.46892849,1923.9,1923.8,3.70418]
[1741986537250,2.46892849,1923.9,1923.8,2.6647]
[1741986537438,2.46892849,1923.9,1923.8,3.70418]
[1741986537642,2.46892849,1923.9,1923.8,2.6647]
[1741986539952,2.46892849,1923.9,1923.8,3.70418]
[1741986540149,2.46892849,1923.9,1923.8,2.6647]
[1741986540446,2.46892849,1923.9,1923.8,3.70418]
[1741986542650,1.42949849,1923.9,1923.8,3.70418]
[1741986542854,1.03943,1923.9,1923.8,3.70418]
[1741986543155,1.03943,1923.9,1923.8,2.6647]
[1741986544147,1.03943,1923.9,1923.8,1.3402]
[1741986544653,1.69783,1923.9,1923.8,1.3402]
[1741986546050,3.08243,1923.9,1923.8,1.3402]
[1741986553649,1.03943,1923.9,1923.8,2.37968]
[1741986554353,1.03943,1923.9,1923.8,1.3402]
[1741986554659,2.47243,1923.9,1923.8,1.3402]
[1741986554857,2.47243,1923.9,1923.8,2.37968]
[1741986555063,1.03943,1923.9,1923.8,2.37968]
[1741986555562,1.03943,1923.9,1923.8,1.3402]
[1741986555762,2.47243,1923.9,1923.8,1.3402]
[1741986556266,2.47243,1923.9,1923.8,2.37968]
[1741986556458,2.47243,1923.9,1923.8,1.3402]
[1741986559261,3.18503,1923.9,1923.8,1.3402]
[1741986561871,1.03964,1923.5,1923.4,5.64348]
[1741986562468,1.03964,1923.5,1923.4,3.82238]
[1741986562869,1.03964,1923.5,1923.4,2.7827]
[1741986563770,1.03964,1923.5,1923.1,28.827]
[1741986563771,1.0398,1923.2,1923.1,28.827]
[1741986564074,1.03991,1923.0,1922.9,4.7575]
[1741986564271,1.03991,1923.0,1922.9,5.79747]
[1741986564470,1.03991,1923.1,1922.9,4.7575]
[1741986564776,1.03991,1923.1,1923.0,1.0399]
[1741986564985,1.03991,1923.1,1923.0,1.3867]
[1741986568066,1.03986,1923.1,1923.0,2.42657]
[1741986568267,1.03985,1923.2,1923.1,1.03986]
[1741986569287,1.03979,1923.3,1923.1,1.03986]
[1741986569477,1.03979,1923.3,1923.2,2.805]
[1741986570683,1.03975,1923.3,1923.2,3.8448]
[1741986571279,5.55961,1923.4,1923.3,1.03975]
[1741986571466,5.55961,1923.4,1923.3,2.36575]
[1741986571872,5.55961,1923.4,1923.3,1.326]
[1741986572682,4.24751,1923.4,1923.3,2.36575]
[1741986573083,1.03967,1923.5,1923.4,1.0397]
[1741986573283,1.03964,1923.5,1923.4,2.36567]
[1741986575288,1.3276,1923.6,1923.4,1.326]
[1741986575489,1.03959,1923.6,1923.5,2.7674]
[1741986577491,1.03959,1923.6,1923.5,3.80704]
[1741986578786,1.03959,1923.6,1923.5,1.3525]
[1741986579590,1.70519,1923.6,1923.5,1.3525]
[1741986580379,4.91299,1923.6,1923.5,1.3525]
[1741986580585,1.70519,1923.6,1923.5,1.3525]
[1741986581591,1.03959,1923.6,1923.5,1.3525]
[1741986590592,4.24739,1923.6,1923.5,1.3525]
[1741986590799,1.03959,1923.6,1923.5,1.3525]
[1741986591300,4.24739,1923.6,1923.5,1.3525]
[1741986593794,5.60389,1923.6,1923.5,1.3525]
[1741986595802,1.0397,1923.4,1923.3,1.388]
[1741986596199,1.03986,1923.1,1923.0,3.2078]
[1741986596400,1.03986,1923.1,1923.0,0.6784]
[1741986596706,1.03997,1922.9,1922.8,0.00779849]
[1741986597505,2.36187,1922.9,1922.8,0.00779849]
[1741986597703,2.36187,1922.9,1922.8,1.32279849]
[1741986598003,2.36187,1922.9,1922.8,1.99749849]
[1741986615713,2.36187,1922.9,1922.8,3.03751849]
[1741986615908,2.36187,1922.9,1922.8,1.99749849]
[1741986617819,1.03997,1922.9,1922.8,1.99749849]
[1741986619915,1.03997,1922.9,1922.8,3.03751849]
[1741986620115,1.03997,1922.9,1922.8,1.99749849]
[1741986622210,1.03986,1923.2,1922.8,7.80534849]
[1741986622416,0.89812346,1923.4,1923.0,4.24767]
[1741986622616,1.0398,1923.2,1923.1,3.72346]
[1741986622819,1.0398,1923.2,1923.1,1.3552]
[1741986623222,1.0398,1923.2,1923.1,2.39506]
[1741986643753,1.03986,1923.1,1923.0,1.3259]
[1741986643942,2.59992,1922.9,1922.4,1.04021]
[1741986644149,1.04007,1922.7,1922.6,1.4417]
[1741986644554,2.45007,1922.7,1922.6,1.4417]
[1741986644953,2.45007,1922.7,1922.4,1.3839]
[1741986644954,1.04029,1922.3,1922.2,4.843]
[1741986646148,1.04029,1922.3,1922.2,6.1974]
[1741986647854,2.45026,1922.4,1922.3,1.04029]
[1741986648156,2.45026,1922.4,1922.3,1.4011]
[1741986653553,5.65806,1922.4,1922.3,1.4011]
[1741986653753,1.04034,1922.2,1922.1,0.00779849]
[1741986654146,1.04034,1922.2,1922.1,1.41499849]
[1741986654350,1.69744,1922.2,1922.1,1.41499849]
[1741986656861,1.04034,1922.2,1922.1,1.41499849]
[1741986657447,2.48364,1922.2,1922.1,1.41499849]
[1741986661355,5.974,1922.6,1922.3,1.04029]
[1741986661356,9.1818,1922.6,1922.3,1.04029]
[1741986661555,2.39098,1922.5,1922.4,1.3897]
[1741986662665,2.39098,1922.5,1922.4,2.0688]
[1741986664262,2.39098,1922.5,1922.4,1.3897]
[1741986667161,2.39098,1922.5,1922.4,2.42994]
[1741986667361,1.04018,1922.5,1922.4,2.42994]
[1741986668672,1.04018,1922.5,1922.4,1.3897]
[1741986668869,2.39988,1922.5,1922.4,1.3897]
[1741986678380,2.39988,1922.5,1922.4,1.2897]
[1741986688793,1.04034,1922.2,1922.1,0.00779849]
[1741986688982,1.04034,1922.2,1922.1,0.71579849]
[1741986690286,2.40524,1922.2,1922.1,2.13109849]
[1741986690582,2.40524,1922.2,1922.1,3.17149849]
[1741986692684,2.40524,1922.2,1922.1,2.13109849]
[1741986694792,2.40524,1922.2,1922.1,3.17149849]
[1741986695593,2.40524,1922.2,1922.1,2.13109849]
[1741986697892,2.40524,1922.2,1922.1,1.42309849]
[1741986700291,2.40524,1922.2,1922.1,2.13549849]
[1741986701503,1.04034,1922.2,1922.1,2.13549849]
[1741986702700,1.04034,1922.2,1922.1,3.17589849]
[1741986703196,1.04034,1922.2,1922.1,2.13549849]
[1741986703791,1.04034,1922.2,1922.1,2.81039849]
[1741986704497,5.58993,1922.3,1922.2,1.04034]
[1741986704699,2.38213,1922.3,1922.2,2.39134]
[1741986705900,2.38213,1922.3,1922.2,1.351]
[1741986728410,9.8158,1922.3,1921.3,32.0598]
[1741986728616,1.04072,1921.7,1921.6,1e-08]
[1741986728817,1.04083,1921.5,1921.4,0.6585]
[1741986729018,5.80988,1921.5,1920.8,12.01199]
[1741986729220,3.2078,1921.5,1921.0,0.6585]
[1741986729411,4.24868,1921.5,1921.0,3.26118]
[1741986729617,1.04868849,1921.4,1921.1,3.41879849]
[1741986730018,1.04868849,1921.4,1921.3,1.04091]
[1741986730319,1.04094,1921.3,1921.2,1.04095]
[1741986730613,1.04099,1921.2,1921.1,1.04880849]